bitfinex/quotes_ETHUSD_20250802
["timestamp","ask_amount","ask_price","bid_price","bid_amount"]
[1754139678461,38.2672,3517.6,3517.5,0.002]
[1754139679172,37.8105,3517.6,3517.5,0.002]
[1754139679371,37.344,3517.6,3517.5,0.002]
[1754139680493,37.344,3517.6,3517.5,0.4918]
[1754139681442,37.344,3517.6,3517.5,0.002]
[1754139681985,37.344,3517.6,3517.5,0.4847]
[1754139682788,37.344,3517.6,3517.5,0.002]
[1754139683656,37.344,3517.6,3517.5,0.4847]
[1754139684358,38.2541,3517.6,3517.5,0.002]
[1754139686080,8.2541,3517.6,3517.5,0.002]
[1754139686284,38.2541,3517.6,3517.5,0.002]
[1754139686779,8.2541,3517.6,3517.5,0.002]
[1754139686952,37.7789,3517.6,3517.5,0.002]
[1754139687282,38.2541,3517.6,3517.5,0.002]
[1754139691688,38.8041,3517.6,3517.5,0.002]
[1754139692859,8.8041,3517.6,3517.5,0.002]
[1754139693081,38.8041,3517.6,3517.5,0.002]
[1754139693555,45.8241,3517.6,3517.5,0.002]
[1754139693961,48.66694739,3517.6,3517.5,0.002]
[1754139694189,48.95194739,3517.6,3517.5,0.002]
[1754139694394,46.1091,3517.6,3517.5,0.002]
[1754139694599,48.95194739,3517.6,3517.5,0.002]
[1754139694771,46.1091,3517.6,3517.5,0.002]
[1754139695181,48.95194739,3517.6,3517.5,0.002]
[1754139695515,46.1091,3517.6,3517.5,0.002]
[1754139697005,16.1091,3517.6,3517.5,0.002]
[1754139697188,46.1091,3517.6,3517.5,0.002]
[1754139697903,48.95194739,3517.6,3517.5,0.002]
[1754139698102,48.95194739,3517.6,3517.2,0.002]
[1754139698103,5.10308987,3517.3,3517.2,0.002]
[1754139698328,63.74393612,3517.3,3517.2,0.002]
[1754139698494,64.06285755,3517.3,3517.2,0.002]
[1754139698817,64.62554594,3517.3,3517.2,0.002]
[1754139699120,34.62554594,3517.3,3517.2,0.002]
[1754139699515,64.62554594,3517.3,3517.2,0.002]
[1754139699701,64.97295755,3517.3,3517.2,0.002]
[1754139701218,71.99295755,3517.3,3517.2,0.002]
[1754139702225,72.30505925,3517.3,3517.2,0.002]
[1754139702575,72.59012925,3517.3,3517.2,0.002]
[1754139703602,71.93061594,3517.3,3517.2,0.002]
[1754139703811,49.90807,3517.3,3517.2,0.002]
[1754139704131,49.90807,3517.3,3517.2,0.9475]
[1754139704132,44.363,3517.3,3517.2,0.9475]
[1754139705177,44.913,3517.3,3517.2,0.9475]
[1754139705410,44.363,3517.3,3517.2,0.9475]
[1754139705604,44.913,3517.3,3517.2,0.002]
[1754139705974,44.913,3517.3,3517.2,0.4847]
[1754139706202,44.913,3517.3,3517.2,0.002]
[1754139708809,44.913,3517.3,3517.2,0.4847]
[1754139709188,44.913,3517.3,3517.2,0.002]
[1754139709406,45.8231,3517.3,3517.2,0.002]
[1754139711633,46.623,3517.3,3517.2,0.002]
[1754139711779,44.912,3517.3,3517.2,0.9549]
[1754139712178,44.912,3517.3,3517.2,0.4847]
[1754139712981,44.912,3517.3,3517.2,0.9549]
[1754139713599,37.342,3517.3,3517.2,0.9549]
[1754139713799,33.0,3517.3,3517.2,0.9549]
[1754139714206,37.342,3517.3,3517.2,0.9549]
[1754139716409,30.0,3517.3,3517.2,0.9549]
[1754139716726,37.342,3517.3,3517.2,0.9549]
[1754139719701,4.342,3517.3,3517.2,0.9549]
[1754139720138,0.001,3517.6,3517.2,0.9549]
[1754139720365,4.341,3517.5,3517.2,0.002]
[1754139720657,3.0,3517.4,3517.3,0.9238]
[1754139720837,3.0,3517.4,3517.2,0.002]
[1754139721006,4.341,3517.3,3517.2,0.002]
[1754139721502,4.341,3517.3,3517.2,0.9258]
[1754139726826,4.341,3517.3,3517.2,0.4556]
[1754139727345,4.341,3517.3,3517.2,0.9258]
[1754139730342,7.341,3517.3,3517.2,0.4556]
[1754139733259,37.341,3517.3,3517.2,0.002]
[1754139735156,37.8002,3517.3,3517.2,0.002]
[1754139735356,38.277,3517.3,3517.2,0.002]
[1754139735559,37.8002,3517.3,3517.2,0.002]
[1754139735759,37.341,3517.3,3517.2,0.002]
[1754139736527,33.0,3517.3,3517.2,0.4556]
[1754139736729,37.34,3517.3,3517.2,0.9258]
[1754139737460,37.34,3517.3,3517.2,0.4556]
[1754139737641,37.34,3517.3,3517.2,0.9258]
[1754139737841,7.34,3517.3,3517.2,0.9258]
[1754139738790,4.34,3517.3,3517.2,1.56313385]
[1754139740129,0.001,3517.6,3517.2,1.56313385]
[1754139740347,4.339,3517.5,3517.4,5.44553855]
[1754139740675,4.339,3517.5,3517.4,6.36933855]
[1754139740676,7.339,3517.5,3517.4,6.36933855]
[1754139740880,4.34,3517.5,3517.4,0.9238]
[1754139747276,0.001,3517.5,3517.4,0.9238]
[1754139748253,0.001,3517.5,3517.4,0.4536]
[1754139748958,0.001,3517.5,3517.4,0.8885]
[1754139751899,0.001,3517.5,3517.4,1.82036369]
[1754139752859,0.001,3517.5,3517.4,0.93186369]
[1754139753065,0.001,3517.5,3517.4,0.4717]
[1754139755875,0.001,3517.5,3517.4,0.9066]
[1754139762909,0.001,3517.5,3517.4,6.34808813]
[1754139765078,0.001,3517.5,3517.4,5.91318813]
[1754139766115,0.001,3517.5,3517.4,6.34808813]
[1754139766409,0.001,3517.5,3517.4,7.06878304]
[1754139766991,0.001,3517.5,3517.4,6.16218304]
[1754139767191,0.9316,3517.5,3517.4,6.16218304]
[1754139767396,0.001,3517.5,3517.4,6.27616404]
[1754139767603,0.001,3517.5,3517.4,6.74786404]
[1754139767806,0.001,3517.5,3517.4,6.27616404]
[1754139767990,0.001,3517.5,3517.4,6.16218304]
[1754139768394,0.001,3517.5,3517.4,6.63388304]
[1754139769815,0.001,3517.5,3517.4,6.16218304]
[1754139770327,0.001,3517.5,3517.4,6.63388304]
[1754139770999,0.001,3517.5,3517.4,7.06878304]
[1754139771995,0.001,3517.5,3517.4,6.63388304]
[1754139773785,0.9292,3517.5,3517.3,0.113982]
[1754139773986,0.9282,3517.4,3517.2,0.002]
[1754139774424,0.9282,3517.3,3517.2,0.002]
[1754139774931,0.4544,3517.3,3517.2,0.002]
[1754139775286,0.9292,3517.5,3517.2,0.002]
[1754139775486,0.4748,3517.5,3517.2,0.002]
[1754139775719,0.4544,3517.4,3517.2,0.002]
[1754139776022,0.4544,3517.4,3517.2,5.44348813]
[1754139776521,0.001,3517.5,3517.2,0.002]
[1754139776820,0.4544,3517.3,3517.2,0.002]
[1754139777035,0.95669018,3517.3,3517.2,0.002]
[1754139777189,0.9282,3517.3,3517.2,0.002]
[1754139777518,3.95669018,3517.3,3517.2,0.002]
[1754139778538,3.9282,3517.3,3517.2,0.002]
[1754139779306,4.336,3517.3,3517.2,0.002]
[1754139780360,0.001,3517.5,3517.2,0.002]
[1754139780501,4.7904,3517.4,3517.2,0.002]
[1754139780704,0.9282,3517.3,3517.2,0.002]
[1754139781142,4.336,3517.4,3517.2,5.44348813]
[1754139781303,4.336,3517.4,3517.2,5.93198813]
[1754139781740,0.001,3517.5,3517.2,5.93198813]
[1754139781902,4.336,3517.4,3517.3,0.4885]
[1754139782102,4.337,3517.5,3517.3,0.9279]
[1754139782333,4.337,3517.5,3517.4,0.9279]
[1754139782536,0.001,3517.5,3517.4,0.4885]
[1754139782843,0.001,3517.5,3517.4,0.9279]
[1754139784999,0.001,3517.5,3517.4,0.4885]
[1754139787337,0.001,3517.5,3517.2,5.44348813]
[1754139787720,0.001,3517.5,3517.3,0.4885]
[1754139788406,0.001,3517.5,3517.4,0.4885]
[1754139790138,0.001,3517.5,3517.2,6.37138813]
[1754139790302,0.001,3517.5,3517.3,0.4885]
[1754139791046,0.001,3517.5,3517.2,5.44348813]
[1754139791222,0.9282,3517.4,3517.2,0.002]
[1754139791729,0.4544,3517.4,3517.2,5.44348813]
[1754139792508,0.001,3517.5,3517.2,0.002]
[1754139792509,0.9282,3517.3,3517.2,0.002]
[1754139793937,0.001,3517.5,3517.2,0.002]
[1754139794168,4.335,3517.4,3517.2,0.002]
[1754139795036,4.335,3517.4,3517.3,0.4885]
[1754139795265,4.335,3517.4,3517.2,0.002]
[1754139795688,0.9282,3517.3,3517.2,0.002]
[1754139795892,0.4544,3517.3,3517.2,0.002]
[1754139796252,4.335,3517.4,3517.2,0.002]
[1754139796464,33.4738,3517.3,3517.2,0.002]
[1754139796764,4.335,3517.3,3517.2,0.002]
[1754139797442,5.2632,3517.3,3517.2,0.002]
[1754139797977,38.2632,3517.3,3517.2,0.002]
[1754139798778,37.335,3517.3,3517.2,0.002]
[1754139798972,7.335,3517.3,3517.2,0.002]
[1754139800262,7.7894,3517.3,3517.2,0.002]
[1754139802191,3.0,3517.3,3517.2,0.002]
[1754139802370,7.335,3517.3,3517.2,0.5018]
[1754139802861,7.335,3517.3,3517.2,0.002]
[1754139803248,8.263,3517.3,3517.2,0.002]
[1754139803658,7.335,3517.3,3517.2,0.5018]
[1754139804388,7.335,3517.3,3517.2,0.002]
[1754139804749,0.001,3517.5,3517.2,0.002]
[1754139805086,0.001,3517.5,3517.3,0.9388]
[1754139805388,4.335,3517.4,3517.2,6.46678196]
[1754139805984,0.001,3517.5,3517.2,6.46678196]
[1754139805985,0.001,3517.5,3517.3,0.9388]
[1754139806482,0.001,3517.5,3517.4,0.9388]
[1754139812277,0.001,3517.5,3517.2,6.46678196]
[1754139812887,0.4745,3517.5,3517.2,6.46678196]
[1754139813094,0.929,3517.5,3517.2,6.46678196]
[1754139814266,0.4745,3517.5,3517.2,6.46678196]
[1754139814461,0.001,3517.5,3517.2,6.46678196]
[1754139814886,0.001,3517.5,3517.3,0.9388]
[1754139815268,0.001,3517.5,3517.4,0.4998]
[1754139815661,0.001,3517.5,3517.4,0.9388]
[1754139816000,0.001,3517.5,3517.4,0.4998]
[1754139816189,0.001,3517.5,3517.4,0.613784]
[1754139816585,0.001,3517.5,3517.4,0.113984]
[1754139817098,0.001,3517.5,3517.4,0.613784]
[1754139817799,0.001,3517.5,3517.4,1.052784]
[1754139817957,0.001,3517.5,3517.4,1.52859424]
[1754139818597,0.001,3517.5,3517.4,1.052784]
[1754139819369,0.001,3517.5,3517.4,1.08121409]
[1754139819687,0.001,3517.5,3517.4,1.052784]
[1754139820176,0.001,3517.5,3517.4,0.113984]
[1754139821373,0.929,3517.5,3517.4,0.113984]
[1754139821608,0.929,3517.5,3517.2,0.002]
[1754139821814,0.001,3517.5,3517.2,0.002]
[1754139821968,0.928,3517.4,3517.2,0.002]
[1754139822167,0.4735,3517.3,3517.2,0.002]
[1754139822367,0.928,3517.3,3517.2,0.002]
[1754139824477,33.95649018,3517.3,3517.2,0.002]
[1754139824676,34.478,3517.3,3517.2,0.002]
[1754139825317,40.82878896,3517.3,3517.2,0.002]
[1754139825625,58.58180321,3517.3,3517.2,0.002]
[1754139826276,62.91580321,3517.3,3517.2,0.002]
[1754139826625,57.99078896,3517.3,3517.2,0.002]
[1754139826779,51.64,3517.3,3517.2,0.002]
[1754139827207,54.48308987,3517.3,3517.2,0.002]
[1754139827414,51.64,3517.3,3517.2,0.002]
[1754139827621,54.48308987,3517.3,3517.2,0.002]
[1754139828479,58.16711595,3517.3,3517.2,0.002]
[1754139828705,59.87711595,3517.3,3517.2,0.002]
[1754139828916,60.16219595,3517.3,3517.2,0.002]
[1754139829517,30.16219595,3517.3,3517.2,0.002]
[1754139829706,60.16219595,3517.3,3517.2,0.002]
[1754139832197,38.10341323,3516.9,3516.8,0.002]
[1754139832517,58.95443931,3516.9,3516.4,0.002]
[1754139832816,47.91217049,3516.5,3516.4,0.002]
[1754139833026,8.10381754,3516.4,3516.3,0.002]
[1754139833323,39.70944362,3516.4,3516.3,0.002]
[1754139834100,43.36241754,3516.4,3516.3,0.002]
[1754139834736,37.77851754,3516.4,3516.3,0.002]
[1754139834913,38.7217,3516.4,3516.3,0.002]
[1754139835111,34.4716,3516.4,3516.3,0.002]
[1754139835344,38.2586,3516.4,3516.3,0.002]
[1754139835749,30.9216,3516.4,3516.3,0.002]
[1754139835952,37.888,3516.4,3516.3,0.002]
[1754139836254,38.8096,3516.4,3516.3,0.002]
[1754139836848,39.02663141,3516.4,3516.3,0.002]
[1754139838352,41.87044895,3516.4,3516.3,0.002]
[1754139839141,55.07437333,3516.4,3516.3,0.002]
[1754139839314,55.53747333,3516.4,3516.3,0.002]
[1754139840449,58.53747333,3516.4,3516.3,0.002]
[1754139840837,28.53747333,3516.4,3516.3,0.002]
[1754139841040,58.53747333,3516.4,3516.3,0.002]
[1754139841876,28.53747333,3516.4,3516.3,0.002]
[1754139842047,58.53747333,3516.4,3516.3,0.002]
[1754139842467,25.22685579,3516.4,3516.3,0.002]
[1754139842635,41.10603141,3516.4,3516.3,0.002]
[1754139843238,44.87144895,3516.4,3516.3,0.002]
[1754139843438,42.02763141,3516.4,3516.3,0.002]
[1754139844170,37.68863141,3516.4,3516.3,0.002]
[1754139844466,38.10503141,3516.4,3516.3,0.002]
[1754139845034,41.87044895,3516.4,3516.3,0.002]
[1754139845267,42.24237333,3516.4,3516.3,0.002]
[1754139845464,45.55447503,3516.4,3516.3,0.002]
[1754139846471,42.92647503,3516.4,3516.3,0.002]
[1754139846636,45.69195579,3516.4,3516.3,0.002]
[1754139846838,66.25444895,3516.4,3516.3,0.002]
[1754139847041,63.41063141,3516.4,3516.3,0.002]
[1754139847239,49.65703141,3516.4,3516.3,0.002]
[1754139848762,56.01727515,3516.4,3516.3,0.002]
[1754139849054,63.03727515,3516.4,3516.3,0.002]
[1754139849305,66.80269269,3516.4,3516.3,0.002]
[1754139850596,80.31871877,3516.4,3516.3,0.002]
[1754139855533,80.60381877,3516.4,3516.3,0.002]
[1754139855747,38.10414106,3516.0,3515.9,0.002]
[1754139855896,71.6563848,3516.0,3515.9,0.002]
[1754139856229,72.5779848,3516.0,3515.9,0.002]
[1754139856706,72.94990918,3516.0,3515.9,0.002]
[1754139857420,73.09529809,3516.0,3515.9,0.002]
[1754139857740,73.09529809,3516.0,3514.7,0.4631]
[1754139857741,2.84510035,3514.9,3514.7,0.4631]
[1754139857897,30.0,3514.5,3514.4,0.4505]
[1754139858090,7.338,3514.5,3514.4,0.4505]
[1754139858305,37.338,3514.5,3514.4,0.4505]
[1754139858595,37.338,3514.5,3514.4,0.9136]
[1754139861935,37.339,3514.5,3514.4,0.9136]
[1754139862138,33.0,3514.5,3514.4,0.9136]
[1754139862435,37.34,3514.5,3514.4,0.9136]
[1754139863236,38.10532911,3514.5,3514.4,0.4651]
[1754139863411,38.10532911,3514.5,3514.4,0.9391]
[1754139864448,38.10532911,3514.5,3514.4,0.002]
[1754139864650,38.10532911,3514.5,3514.4,0.4548]
[1754139865001,38.10532911,3514.5,3514.4,0.9288]
[1754139865002,38.10732911,3514.5,3514.4,0.9288]
[1754139865350,38.10832911,3514.5,3514.4,0.9288]
[1754139865507,37.55932911,3514.5,3514.4,0.9288]
[1754139865703,33.21432911,3514.5,3514.4,0.9288]
[1754139866035,37.345,3514.5,3514.4,0.9288]
[1754139866214,33.0,3514.5,3514.4,0.9288]
[1754139866414,37.346,3514.5,3514.4,0.9288]
[1754139868249,7.346,3514.5,3514.4,0.9288]
[1754139868456,3.0,3514.5,3514.4,0.9288]
[1754139868660,37.345,3514.5,3514.4,0.9288]
[1754139874616,37.345,3514.5,3514.4,0.4548]
[1754139874811,37.345,3514.5,3514.4,0.9288]
[1754139875450,33.0,3514.5,3514.4,0.9288]
[1754139875628,7.342,3514.5,3514.4,0.9288]
[1754139876251,3.0,3514.5,3514.4,0.9288]
[1754139876615,7.342,3514.5,3514.4,2.00690629]
[1754139878120,4.342,3514.5,3514.4,2.00690629]
[1754139879654,30.0,3515.0,3514.4,2.00690629]
[1754139879855,3.0,3515.1,3514.5,0.9268]
[1754139879856,4.341,3514.9,3514.5,0.9268]
[1754139880065,4.341,3514.8,3514.6,0.9268]
[1754139880358,4.341,3514.7,3514.4,0.002]
[1754139880760,4.341,3514.7,3514.5,0.9268]
[1754139881073,4.341,3514.7,3514.4,0.002]
[1754139881074,4.341,3514.7,3514.6,0.9268]
[1754139881435,7.341,3514.7,3514.6,0.9268]
[1754139882769,3.0,3514.7,3514.6,0.9268]
[1754139883077,4.341,3514.7,3514.6,2.00186061]
[1754139884980,4.341,3514.7,3514.6,2.85747661]
[1754139886811,4.341,3514.7,3514.6,0.855616]
[1754139886976,4.341,3514.7,3514.6,0.9268]
[1754139888693,4.341,3514.7,3514.6,1.782431]
[1754139889646,4.341,3514.7,3514.6,1.308431]
[1754139889853,4.341,3514.7,3514.6,0.9268]
[1754139890086,4.341,3514.7,3514.6,2.00186061]
[1754139892775,4.341,3514.7,3514.4,0.002]
[1754139892968,4.341,3514.7,3514.6,0.9622]
[1754139896890,3.0,3515.1,3514.6,0.9622]
[1754139897092,3.0,3515.1,3514.4,0.002]
[1754139897093,4.34,3515.0,3514.8,9.82180608]
[1754139897280,7.34,3515.0,3514.9,0.9622]
[1754139899873,3.0,3515.0,3514.9,0.9622]
[1754139900063,7.338,3515.0,3514.9,0.9622]
[1754139900259,4.338,3515.0,3514.9,0.9622]
[1754139900492,3.0,3515.7,3514.9,0.9622]
[1754139900695,3.0,3515.5,3515.0,2.14844067]
[1754139900991,3.0,3515.5,3515.4,6.35721993]
[1754139901196,3.0,3515.5,3515.4,6.85251993]
[1754139901404,0.001,3515.9,3515.4,6.85251993]
[1754139901706,0.001,3515.9,3515.8,6.35721993]
[1754139901903,0.001,3515.9,3515.8,7.09200647]
[1754139902202,0.001,3515.9,3515.8,8.05420647]
[1754139902586,0.001,3516.0,3515.8,8.05420647]
[1754139902898,4.345,3516.4,3515.9,0.99064221]
[1754139903197,4.345,3516.5,3516.3,6.35721993]
[1754139903399,4.345,3516.5,3516.4,7.98358009]
[1754139903711,4.345,3516.9,3516.4,7.31941993]
[1754139903917,4.345,3517.0,3516.8,6.35721993]
[1754139904277,4.345,3517.0,3516.9,0.4953]
[1754139904603,7.345,3517.0,3516.9,0.4953]
[1754139904804,4.345,3517.0,3516.9,0.4953]
[1754139905462,4.345,3517.0,3516.9,0.855092]
[1754139905676,4.345,3517.0,3516.9,1.350392]
[1754139905877,4.345,3517.0,3516.9,0.855092]
[1754139907116,4.345,3517.0,3516.9,1.350392]
[1754139908013,4.345,3517.0,3516.9,0.855092]
[1754139908508,4.343,3517.0,3516.9,0.855092]
[1754139909392,4.343,3517.0,3516.4,0.4953]
[1754139909393,5.2486,3517.0,3516.4,0.4953]
[1754139909551,0.9056,3516.9,3516.6,0.85517]
[1754139909701,0.9056,3516.8,3516.6,0.85517]
[1754139910052,4.343,3516.7,3516.6,0.85517]
[1754139910215,5.2486,3516.7,3516.6,0.85517]
[1754139910547,5.2486,3516.7,3516.0,9.79903937]
[1754139910851,5.2486,3516.7,3516.4,0.855223]
[1754139911031,5.2486,3516.7,3515.5,10.29433937]
[1754139911032,4.7867,3516.7,3515.5,10.29433937]
[1754139911202,3.9056,3516.6,3515.5,10.29433937]
[1754139911402,3.9056,3516.6,3515.6,1.51032394]
[1754139911598,30.93409018,3516.5,3515.6,1.51032394]
[1754139911856,0.9056,3516.4,3515.6,1.51032394]
[1754139912042,4.345,3516.3,3515.6,1.51032394]
[1754139912240,4.345,3516.2,3515.0,9.79903937]
[1754139912445,3.0,3516.6,3516.0,0.855321]
[1754139912446,4.345,3516.1,3516.0,0.855321]
[1754139912735,5.2506,3516.1,3515.2,0.4953]
[1754139912930,5.2506,3516.1,3515.2,1.350743]
[1754139913181,5.2506,3516.1,3515.3,1.16166824]
[1754139913514,4.345,3516.1,3515.3,1.16166824]
[1754139913715,0.9056,3516.0,3515.8,0.002]
[1754139914145,4.345,3516.1,3515.8,0.002]
[1754139914358,0.9056,3515.9,3515.8,0.002]
[1754139916050,30.93409018,3515.9,3515.8,0.002]
[1754139916242,30.4437,3515.9,3515.8,0.002]
[1754139916631,30.9056,3515.9,3515.8,0.002]
[1754139917517,33.9056,3515.9,3515.8,0.002]
[1754139918527,34.4556,3515.9,3515.8,0.002]
[1754139918948,34.67010933,3515.9,3515.8,0.002]
[1754139921559,39.01410933,3515.9,3515.8,0.002]
[1754139923738,9.01410933,3515.9,3515.8,0.002]
[1754139923936,39.01410933,3515.9,3515.8,0.002]
[1754139926963,9.01410933,3515.9,3515.8,0.002]
[1754139927131,39.01410933,3515.9,3515.8,0.002]
[1754139928864,38.10850933,3515.9,3515.8,0.002]
[1754139930553,39.01950933,3515.9,3515.8,0.002]
[1754139932042,9.01950933,3515.9,3515.8,0.002]
[1754139932246,39.01950933,3515.9,3515.8,0.002]
[1754139932769,38.10850933,3515.9,3515.8,0.002]
[1754139933270,38.10850933,3515.9,3515.8,0.4542]
[1754139933478,37.55850933,3515.9,3515.8,0.4542]
[1754139933774,37.55350933,3515.9,3515.8,0.4542]
[1754139933969,37.55350933,3515.9,3515.8,0.002]
[1754139934278,38.46450933,3515.9,3515.8,0.002]
[1754139935170,8.46450933,3515.9,3515.8,0.002]
[1754139935346,37.55350933,3515.9,3515.8,0.002]
[1754139936774,39.26350933,3515.9,3515.8,0.002]
[1754139937073,37.99820933,3515.9,3515.8,0.002]
[1754139937239,38.46450933,3515.9,3515.8,0.002]
[1754139938141,8.46450933,3515.9,3515.8,0.002]
[1754139938338,38.10350933,3515.9,3515.8,0.002]
[1754139938588,39.01450933,3515.9,3515.8,0.002]
[1754139940042,39.38643371,3515.9,3515.8,0.002]
[1754139940281,9.01450933,3515.9,3515.8,0.002]
[1754139940651,39.29964933,3515.9,3515.8,0.002]
[1754139940852,41.00964933,3515.9,3515.8,0.002]
[1754139941053,43.85387129,3515.9,3515.8,0.002]
[1754139941252,41.00964933,3515.9,3515.8,0.002]
[1754139943798,47.53789737,3515.9,3515.8,0.002]
[1754139944881,60.37089737,3515.9,3515.8,0.002]
[1754139946112,38.10454558,3515.5,3515.4,0.002]
[1754139946271,68.07858495,3515.5,3515.4,0.002]
[1754139946468,68.07858495,3515.5,3514.9,0.002]
[1754139946469,41.10495021,3515.0,3514.9,0.002]
[1754139946663,58.59405191,3515.0,3514.9,0.002]
[1754139946867,59.87697629,3515.0,3514.9,0.002]
[1754139947171,61.82415139,3515.0,3514.9,0.002]
[1754139948598,31.82415139,3515.0,3514.9,0.002]
[1754139948909,61.82415139,3515.0,3514.9,0.002]
[1754139951895,61.51204969,3515.0,3514.9,0.002]
[1754139953271,61.14012531,3515.0,3514.9,0.002]
[1754139953566,55.89012531,3515.0,3514.9,0.002]
[1754139953784,60.68762531,3515.0,3514.9,0.002]
[1754139954192,47.7851751,3515.0,3514.9,0.002]
[1754139954505,39.2871751,3515.0,3514.9,0.002]
[1754139955002,39.8371751,3515.0,3514.9,0.002]
[1754139955367,42.68212531,3515.0,3514.9,0.002]
[1754139955975,12.68212531,3515.0,3514.9,0.002]
[1754139956201,39.8371751,3515.0,3514.9,0.002]
[1754139956402,44.39212531,3515.0,3514.9,0.002]
[1754139956802,44.84962531,3515.0,3514.9,0.002]
[1754139957315,61.48842701,3515.0,3514.9,0.002]
[1754139957600,61.86035139,3515.0,3514.9,0.002]
[1754139958513,71.65939076,3515.0,3514.9,0.002]
[1754139960512,71.63278906,3515.0,3514.9,0.002]
[1754139961105,71.63278906,3515.0,3514.9,0.4795]
[1754139961106,60.51462531,3515.0,3514.9,0.4795]
[1754139961306,60.51462531,3515.0,3514.9,0.002]
[1754139961681,57.6696751,3515.0,3514.9,0.002]
[1754139962015,60.51462531,3515.0,3514.9,0.4795]
[1754139962209,60.51462531,3515.0,3514.9,0.002]
[1754139962210,56.17462531,3515.0,3514.9,0.002]
[1754139962416,44.8336751,3515.0,3514.9,0.947]
[1754139962912,34.9471751,3515.0,3514.9,0.947]
[1754139963086,9.2881751,3515.0,3514.9,0.947]
[1754139963290,34.9471751,3515.0,3514.9,0.947]
[1754139963514,39.2881751,3515.0,3514.9,0.947]
[1754139964092,39.8381751,3515.0,3514.9,0.947]
[1754139965977,39.8371751,3515.0,3514.9,0.947]
[1754139966477,46.6831751,3515.0,3514.9,0.947]
[1754139967415,43.1331751,3515.0,3514.9,0.947]
[1754139967594,46.1331751,3515.0,3514.9,0.947]
[1754139967918,43.1331751,3515.0,3514.9,0.947]
[1754139968105,46.1331751,3515.0,3514.9,0.947]
[1754139972313,16.1331751,3515.0,3514.9,0.947]
[1754139972626,46.1331751,3515.0,3514.9,0.947]
[1754139973488,41.7931751,3515.0,3514.9,0.947]
[1754139973687,46.1331751,3515.0,3514.9,0.947]
[1754139975022,3.0,3514.9,3514.4,0.002]
[1754139975348,30.0,3514.6,3514.4,0.002]
[1754139975488,4.36849018,3514.5,3514.4,0.002]
[1754139975693,34.36849018,3514.5,3514.4,0.002]
[1754139975890,34.34,3514.5,3514.4,0.002]
[1754139976523,37.89,3514.5,3514.4,0.002]
[1754139976692,39.20912438,3514.5,3514.4,0.002]
[1754139976889,38.8372,3514.5,3514.4,0.002]
[1754139979221,37.89,3514.5,3514.4,0.002]
[1754139979724,34.89,3514.5,3514.4,0.947]
[1754139979924,34.34,3514.5,3514.4,0.947]
[1754139980093,37.34,3514.5,3514.4,0.947]
[1754139980837,37.34,3514.5,3514.4,0.4795]
[1754139983625,7.34,3514.5,3514.4,0.4795]
[1754139983824,37.34,3514.5,3514.4,0.927]
[1754139985242,37.34,3514.5,3514.4,0.4795]
[1754139985739,33.0,3514.5,3514.4,0.4795]
[1754139985911,37.34,3514.5,3514.4,0.927]
[1754139986543,37.34,3514.5,3514.4,0.4795]
[1754139986848,37.34,3514.5,3514.4,0.002]
[1754139987021,7.34,3514.5,3514.4,0.002]
[1754139987439,37.34,3514.5,3514.4,0.002]
[1754139987936,38.2591,3514.5,3514.4,0.002]
[1754139988344,37.34,3514.5,3514.4,0.002]
[1754139989642,37.34,3514.5,3514.4,0.4858]
[1754139990217,37.34,3514.5,3514.4,0.002]
[1754139991052,38.2591,3514.5,3514.4,0.002]
[1754139992653,38.8091,3514.5,3514.4,0.002]
[1754139993759,38.8091,3514.5,3514.4,0.4858]
[1754139993760,37.34,3514.5,3514.4,0.4858]
[1754139994059,37.34,3514.5,3514.4,0.9333]
[1754139994759,6.846,3515.0,3514.4,0.9333]
[1754139994926,30.0,3514.5,3514.4,0.4495]
[1754139995126,37.34,3514.5,3514.4,0.002]
[1754139995747,3.0,3514.5,3514.4,0.9333]
[1754139995947,37.34,3514.5,3514.4,0.9333]
[1754139996631,30.0,3514.9,3514.4,0.9333]
[1754139996948,30.0,3514.7,3514.5,0.9313]
[1754139997120,6.846,3515.0,3514.4,0.002]
[1754139997121,4.34,3514.6,3514.4,0.002]
[1754139997318,4.34,3514.5,3514.4,0.002]
[1754139997853,6.846,3515.0,3514.5,0.9313]
[1754139998055,34.34,3514.9,3514.6,0.9313]
[1754139998247,30.0,3514.8,3514.4,0.002]
[1754139998447,30.0,3514.9,3514.7,0.9313]
[1754139998647,30.0,3514.9,3514.8,0.9313]
[1754139998846,34.339,3514.9,3514.8,0.9313]
[1754140000227,4.339,3514.9,3514.8,0.9313]
[1754140001164,0.001,3515.3,3514.8,0.9313]
[1754140001462,0.001,3515.3,3514.4,9.82949372]
[1754140001463,4.339,3515.2,3514.9,10.75878968]
[1754140001759,4.339,3515.2,3515.0,2.03562847]
[1754140001957,4.339,3515.2,3515.1,0.9313]